Cogmind - Beta 17 @@@ ROGUE MODE // 2026.06.26 @ 13:17:38 Player: kite Result: Self-destructed Performance ------------- Evolutions (2) 1000 Regions Visited (5) 1000 Robots Destroyed (1) 5 Value Destroyed (10) 10 Prototype IDs (23) 460 Alien Tech Used (0) 0 Bonus (603) 603 TOTAL SCORE: 3078 Bonus ------- Pacifist 270 Follower Combat Kills 33 Aligned with FarCom 300 Cogmind --------- Core Integrity 131/550 Matter 265/300 Energy 45/100 System Corruption 0% Temperature Cool (4) Movement Flying (32) Location -8/Materials Parts ------- > --- POWER (1) -------- (None) > --- PROPULSION (5) --- VTOL Module VTOL Module > --- UTILITY (2) ------ Melee Analysis Suite > --- WEAPON (3) ------- (None) > --- INVENTORY (5) ---- High-capacity Storage Unit Improved Utility Shielding Deploy-a-Sentry Deploy-a-Sentry Deploy-a-Sentry Peak State ------------ > --- POWER ------------ (None) > --- PROPULSION ------- VTOL Module VTOL Module VTOL Module VTOL Module > --- UTILITY ---------- Melee Analysis Suite > --- WEAPON ----------- (None) > --- INVENTORY -------- High-capacity Storage Unit Improved Utility Shielding Deploy-a-Sentry Deploy-a-Sentry Deploy-a-Sentry [Rating: 13] Favorites ----------- Power Ion Engine Engine Ion Engine Propulsion Light Treads Treads Light Treads Leg Aluminum Leg Wheel Compact Wheel Flight Unit VTOL Module Utility Weight Redist. System Device Weight Redist. System Processor Melee Analysis Suite Protection Propulsion Shielding Weapon None Build | -11 -10 -10 -10 -9 -8 ------- Run | Yrd Mat Min Exi Min Mat Slots Evolved 4 | . . . . . 4 Power . | . . . . . . Propulsion 3 | . . . . . 3 Utility . | . . . . . . Weapon 1 | . . . . . 1 Parts Attached 15 | 5 2 . . . 8 Power 1 | 1 . . . . . Engine 1 | 1 . . . . . Core . | . . . . . . Reactor . | . . . . . . Propulsion 10 | 4 . . . . 6 Treads 2 | 2 . . . . . Leg 1 | . . . . . 1 Wheel 2 | 2 . . . . . Hover . | . . . . . . Flight 5 | . . . . . 5 Utility 4 | . 2 . . . 2 Device 1 | . 1 . . . . Storage . | . . . . . . Processor 1 | . . . . . 1 Hackware . | . . . . . . Protection 2 | . 1 . . . 1 Artifact . | . . . . . . Weapon . | . . . . . . Energy Gun . | . . . . . . Energy Cannon . | . . . . . . Ballistic Gun . | . . . . . . Ballistic Cannon . | . . . . . . Launcher . | . . . . . . Special Weapon . | . . . . . . Impact Weapon . | . . . . . . Slashing Weapon . | . . . . . . Piercing Weapon . | . . . . . . Special Melee Weapon . | . . . . . . Unidentified Prototypes . | . . . . . . Parts Lost 8 | . . . . . 8 Power 1 | . . . . . 1 Propulsion 6 | . . . . . 6 Utility 1 | . . . . . 1 Weapon . | . . . . . . Highest Loss Streak 3 | . . . . . 3 To Critical Strikes . | . . . . . . Average Backups 3 | 2 5 5 3 2 1 Power . | 1 1 1 . . . Propulsion 1 | . 2 3 1 1 . Utility 1 | . 1 1 1 1 1 Weapon . | . . . . . . Tool/Special . | . . . . . . Unused Backups 7 | . 2 . 2 . 3 Power 1 | . 1 . . . . Propulsion 2 | . . . 2 . . Utility 4 | . 1 . . . 3 Weapon . | . . . . . . Tool/Special . | . . . . . . Average Slot Usage (%) 51 | . 42 57 59 71 42 Engine 3 | . . . 2 14 4 Treads 23 | . 28 28 28 28 13 Leg 1 | . . . . . 5 Device 10 | . 4 14 14 14 7 Protection 11 | . 9 14 14 14 8 Peak Build Rating 13 | 3 5 5 8 8 13 Average Rating 6 | 1 3 5 6 8 8 On Entrance 4 | . 2 5 5 8 8 Avg Prop Armor Cover (%) 37 | 37 40 40 38 33 35 Naked Turns . | . . . . . . Heaviest Build 6 | 5 1 1 6 6 6 Greatest Support 46 | 32 9 9 9 9 46 Greatest Overweight (x) . | . . . . . . Average Overweight (x) . | . . . . . . Largest Inventory Capacity 5 | 5 5 5 5 5 5 Average Capacity 5 | 5 5 5 5 5 5 Most Carried 5 | 5 5 5 5 5 5 Average Carried 4 | 3 4 5 4 5 4 Final Capacity 5 | 5 5 5 5 5 5 Final Carried 5 | 5 5 5 5 5 5 Class Distribution -------------------- 100% | Mutant Dominant Class ---------------- Mutant | -10/Materials Mutant | -10/Mines Mutant | -10/Exiles Mutant | -9/Mines Mutant | -8/Materials Resources | -11 -10 -10 -10 -9 -8 ----------- Run | Yrd Mat Min Exi Min Mat Matter Collected 278 | 120 . . 150 . 8 Remotely . | . . . . . . Salvage Created . | . . . . . . Parts 2 | . . . . . 2 Haulers Intercepted . | . . . . . . Recyclers Shooed . | . . . . . . Parts Field Recycled . | . . . . . . Retrieved Matter . | . . . . . . Parts Self-Destructed . | . . . . . . Prevented . | . . . . . . Parts Restored . | . . . . . . Kills | -11 -10 -10 -10 -9 -8 ------- Run | Yrd Mat Min Exi Min Mat Combat Hostiles Destroyed 1 | . . . . . 1 Melee 1 | . . . . . 1 Classes Destroyed 1 | . . . . . 1 Swarmer 1 | . . . . . 1 Best Kill Streak 1 | . . . . . 1 Combat Bots Only 1 | . . . . . 1 Max Kills in Single Turn 1 | . . . . . 1 Gunslinging . | . . . . . . Exploded . | . . . . . . Melee 1 | . . . . . 1 Uniques/NPCs Destroyed . | . . . . . . Combat | -11 -10 -10 -10 -9 -8 -------- Run | Yrd Mat Min Exi Min Mat Hostile Shots Fired 141 | . 5 . . . 136 Missed 54 | . 2 . . . 52 Hits 87 | . 3 . . . 84 Projectile 87 | . 3 . . . 84 Critical Strikes 2 | . . . . . 2 Damage Taken 1068 | . 55 . . . 1013 Core 439 | . 20 . . . 419 Absorbed by Shields . | . . . . . . Redirected to Shielding 69 | . 10 . . . 59 Core Remaining (%) 96 | 100 . . . 92 . Volleys Fired . | . . . . . . Largest . | . . . . . . Hottest . | . . . . . . Shots Fired . | . . . . . . Gun . | . . . . . . Cannon . | . . . . . . Launcher . | . . . . . . Special . | . . . . . . Kinetic . | . . . . . . Thermal . | . . . . . . Explosive . | . . . . . . Electromagnetic . | . . . . . . Robot Hit Streak . | . . . . . . Robot Miss Streak . | . . . . . . Penetration Max . | . . . . . . Secondary Targets . | . . . . . . Shots Hit Robots . | . . . . . . Core Hits 2 | . . . . . 2 Critical Kills . | . . . . . . Critical Parts Destroyed . | . . . . . . Critical Strikes . | . . . . . . Melee Attacks . | . . . . . . Impact . | . . . . . . Slashing . | . . . . . . Piercing . | . . . . . . Sneak Attacks . | . . . . . . Combat Hostiles . | . . . . . . Follow-up Attacks . | . . . . . . Damage Inflicted 20 | . . . . . 20 Guns . | . . . . . . Cannons . | . . . . . . Explosions . | . . . . . . Melee . | . . . . . . Ramming 20 | . . . . . 20 Kinetic . | . . . . . . Thermal . | . . . . . . Explosive . | . . . . . . Electromagnetic . | . . . . . . Impact . | . . . . . . Slashing . | . . . . . . Piercing . | . . . . . . Highest Corruption . | . . . . . . Average Corruption . | . . . . . . Corruption Purged . | . . . . . . Corruption Blocked . | . . . . . . Overload Shots . | . . . . . . Overflow Damage . | . . . . . . Projectiles . | . . . . . . Explosions . | . . . . . . Melee . | . . . . . . Knockbacks 1 | . . . . . 1 Impact 1 | . . . . . 1 Kinetic . | . . . . . . Secondary . | . . . . . . Self-Inflicted Damage . | . . . . . . Shots . | . . . . . . Rammed 10 | . . . . . 10 Targets Rammed 11 | . . . . . 11 Kicked . | . . . . . . Crushed 1 | . . . . . 1 Highest Temperature . | . . . . . . Average Temperature . | . . . . . . Received Heat Transfer 219 | . 21 . . . 198 Siege Activations . | . . . . . . Martial Activations . | . . . . . . Shielding Activations . | . . . . . . Robots Disrupted . | . . . . . . Combat Hostiles . | . . . . . . Robots Corrupted . | . . . . . . Combat Hostiles . | . . . . . . Parts Fried . | . . . . . . Impact Corruptions . | . . . . . . Robots Melted . | . . . . . . Combat Hostiles . | . . . . . . Parts Melted . | . . . . . . Heat Transferred . | . . . . . . Parts Sabotaged . | . . . . . . Parts Stolen . | . . . . . . Parts Stripped . | . . . . . . Power Chain Reactions . | . . . . . . Alert | -11 -10 -10 -10 -9 -8 ------- Run | Yrd Mat Min Exi Min Mat Maximum Alert Level . | . . . . . . Low Security (%) 100 | 100 100 100 . 100 100 Level 1 . | . . . . . . Level 2 . | . . . . . . Level 3 . | . . . . . . Level 4 . | . . . . . . Level 5 . | . . . . . . High Security . | . . . . . . Max Security . | . . . . . . Peak Influence 80 | . 60 23 . . 80 Initial 23 | . . 23 . . . Average 14 | . 15 10 . . 19 Influence Increases 339 | . 95 . . . 244 Destroy 0b10 Robot/C 40 | . . . . . 40 Destroy Leader 20 | . . . . . 20 Allied During Kill 7 | . . . . . 7 Successful Hack 17 | . 5 . . . 12 Partial Spotted 30 | . . . . . 30 Lose Combat Pursuer 225 | . 90 . . . 135 Influence Decreases 309 | . 35 60 . . 214 Entered New Map 37 | . . 37 . . . Time Decay 178 | . 35 23 . . 120 Lost Part 62 | . . . . . 62 Lost Ally 32 | . . . . . 32 Squads Dispatched 2 | . 1 . . . 1 Investigation 1 | . . . . . 1 Extermination . | . . . . . . Reinforcement 1 | . 1 . . . . Assault . | . . . . . . Garrison . | . . . . . . Intercept . | . . . . . . Searches Triggered . | . . . . . . Construction Impeded . | . . . . . . Haulers Reinforced . | . . . . . . Active Scanning Responses . | . . . . . . Cargo Convoy Interrupts . | . . . . . . Stealth | -11 -10 -10 -10 -9 -8 --------- Run | Yrd Mat Min Exi Min Mat Distress Signals 1 | . 1 . . . . Communications Jammed . | . . . . . . Distress Signals . | . . . . . . Times Spotted 32 | . 10 . . . 22 Peak Tracking Total 9 | . 6 . . . 9 Tactical Retreats 7 | . 3 . . . 4 Traps | -11 -10 -10 -10 -9 -8 ------- Run | Yrd Mat Min Exi Min Mat Traps Triggered 1 | . 1 . . . . Indirectly . | . . . . . . Trap Hack Attempts . | . . . . . . Triggered . | . . . . . . Disarmed . | . . . . . . Reprogrammed . | . . . . . . Reused . | . . . . . . Traps Extracted . | . . . . . . Installed . | . . . . . . Triggered . | . . . . . . Machines | -11 -10 -10 -10 -9 -8 ---------- Run | Yrd Mat Min Exi Min Mat Machines Disabled . | . . . . . . Max in Single Turn . | . . . . . . Machines Repaired . | . . . . . . Machines Dismantled . | . . . . . . Machines Sabotaged . | . . . . . . Overloaded Fab Kills . | . . . . . . Hacking | -11 -10 -10 -10 -9 -8 --------- Run | Yrd Mat Min Exi Min Mat Machines Accessed 4 | . 2 . 1 . 1 Terminals 3 | . 2 . . . 1 Fabricators . | . . . . . . Repair Stations . | . . . . . . Recycling Units . | . . . . . . Scanalyzers . | . . . . . . Garrison Access . | . . . . . . Total Hacks 7 | . 3 . 1 . 3 Successful 5 | . 2 . 1 . 2 Failed 2 | . 1 . . . 1 Catastrophic 1 | . . . . . 1 Database Lockouts . | . . . . . . Manual 7 | . 3 . 1 . 3 Terminals 6 | . 3 . . . 3 Fabricators . | . . . . . . Repair Stations . | . . . . . . Recycling Units . | . . . . . . Scanalyzers . | . . . . . . Garrison Access . | . . . . . . Terminal Hacks 3 | . 1 . 1 . 1 Registered Components 2 | . 1 . . . 1 Proto ID Catalog 1 | . . . 1 . . Fabricator Hacks . | . . . . . . Repair Station Hacks . | . . . . . . Recycling Unit Hacks . | . . . . . . Scanalyzer . | . . . . . . Garrison Access Hacks . | . . . . . . Unauthorized Hacks 2 | . 1 . . . 1 Terminals 2 | . 1 . . . 1 Botnet 2 | . 1 . . . 1 Fabricators . | . . . . . . Repair Stations . | . . . . . . Recycling Units . | . . . . . . Scanalyzers . | . . . . . . Garrison Access . | . . . . . . Data Cores Recovered . | . . . . . . Used . | . . . . . . Hacking Detections 2 | . 1 . . . 1 Full Trace Events 1 | . . . . . 1 Feedback Events . | . . . . . . Feedback Blocked . | . . . . . . Robot Schematics Acquired . | . . . . . . Robots Built . | . . . . . . Authchips . | . . . . . . Time . | . . . . . . Total Robot Build Rating . | . . . . . . Part Schematics Acquired . | . . . . . . Parts Built . | . . . . . . Authchips . | . . . . . . Time . | . . . . . . Total Part Build Rating . | . . . . . . Part Studies Acquired . | . . . . . . Parts Repaired . | . . . . . . Time . | . . . . . . Parts Recycled . | . . . . . . Recycled Matter . | . . . . . . Retrieved Matter . | . . . . . . Retrieved Components . | . . . . . . Parts Scanalyzed . | . . . . . . Part Schematics Acquired . | . . . . . . Parts Damaged . | . . . . . . Bothacking | -11 -10 -10 -10 -9 -8 ------------ Run | Yrd Mat Min Exi Min Mat Used RIF Installer . | . . . . . . Robots Hacked . | . . . . . . Non-combat . | . . . . . . Combat . | . . . . . . Robot Hacks Applied . | . . . . . . Relay Couplers Released . | . . . . . . Fabnet Peak Effective % . | . . . . . . Robots Rewired . | . . . . . . Allies Hacked . | . . . . . . Hacks Repelled . | . . . . . . Allies | -11 -10 -10 -10 -9 -8 -------- Run | Yrd Mat Min Exi Min Mat Total Allies 5 | . . 2 . 3 . Largest Group 3 | . . 2 2 3 3 Highest-Rated Group 52 | . . 52 52 40 40 Highest-Rated Ally 31 | . . 31 31 16 16 Total Orders . | . . . . . . Ally Attacks 12 | . . . . . 12 Total Damage 145 | . . . . . 145 Kills 1 | . . . . . 1 Allies Corrupted . | . . . . . . Allies Melted . | . . . . . . Intel | -11 -10 -10 -10 -9 -8 ------- Run | Yrd Mat Min Exi Min Mat Active Infowar (turns) . | . . . . . . Robot Analysis Total . | . . . . . . Derelict Logs Recovered 1 | . . . . 1 . Drone Launches . | . . . . . . Drone Recoveries . | . . . . . . Exploration | -11 -10 -10 -10 -9 -8 ------------- Run | Yrd Mat Min Exi Min Mat Turns Passed 958 | 46 159 69 263 92 329 Spaces Moved 1508 | 43 305 53 444 138 525 Core 1432 | 25 305 53 444 138 467 Treads 17 | 4 . . . . 13 Legs . | . . . . . . Wheels 14 | 14 . . . . . Hover . | . . . . . . Flight 45 | . . . . . 45 Fastest Speed 26 | 50 50 50 50 50 26 Average Speed 51 | 76 50 50 50 50 51 Slowest Speed 160 | 160 50 50 50 50 160 Overloaded Moves . | . . . . . . Propulsion Burnouts . | . . . . . . Robots Hopped 4 | . . . . . 4 Potential Cave-ins . | . . . . . . Cave-ins Triggered . | . . . . . . Exploration Rate (%) 40 | 4 64 20 64 43 45 Regions Visited 5 Branch Regions 3 Pre-discovered Areas . | . . . . . . Known Exits Taken . | . . . . . . Unknown Exits Taken 5 | 1 1 1 1 1 . Scrap Searched . | . . . . . . Spaces Dug . | . . . . . . Terrain Destroyed . | . . . . . . Melee . | . . . . . . Projectile . | . . . . . . AOE . | . . . . . . Terrain Rammed . | . . . . . . Walls Destroyed . | . . . . . . Machines Disabled . | . . . . . . Actions | -11 -10 -10 -10 -9 -8 --------- Run | Yrd Mat Min Exi Min Mat Total 1675 | 54 311 94 485 160 571 Wait 127 | . 1 42 35 23 26 Move 1497 | 42 304 52 443 137 519 Hop 2 | . . . . . 2 Pick Up 11 | 4 2 . 3 . 2 Fast Attach 15 | 5 2 . 1 . 7 Attach 1 | . . . . . 1 Detach 1 | 1 . . . . . Swap . | . . . . . . Drop 10 | 2 2 . 3 . 3 Fire . | . . . . . . Melee . | . . . . . . Ram . | . . . . . . Kick . | . . . . . . Crush 11 | . . . . . 11 Escape Stasis . | . . . . . . Rewire . | . . . . . . Trap . | . . . . . . Miscellaneous . | . . . . . . Route ------- -11/Scrapyard -10/Materials (discovered 4 exits: [*Mat x2] / [*Min x2]) -10/Mines (discovered 2 exits: [*Mat] / *Exi) -10/Exiles -9/Mines -8/Materials (discovered 3 exits: [*Fac x2] / [*Sto]) History --------- Turn | Location | Event 20 | -11/Scrapyard | Discovered new exit (range 15) 47 | -11/Scrapyard | Entered Materials 89 | -10/Materials | Discovered new exit (range 15) 127 | -10/Materials | Discovered new exit (range 11) 162 | -10/Materials | Discovered new exit (range 10) 200 | -10/Materials | Discovered new exit (range 9) 206 | -10/Materials | Entered Mines 219 | -10/Mines | Discovered new exit (range 14) 234 | -10/Mines | Deemed a non-threat by the Exiles lab entrance 234 | -10/Mines | Discovered new exit (range 5) 275 | -10/Mines | Entered Exiles 275 | -10/Exiles | Accompanied by 2 allies 289 | -10/Exiles | Met 8R-AWN 305 | -10/Exiles | Led the pair of lost Derelicts to a safe place 309 | -10/Exiles | Build established: Mutant 319 | -10/Exiles | Met EX-HEX 335 | -10/Exiles | Met EX-BIN 341 | -10/Exiles | Aligned with FarCom system 341 | -10/Exiles | Given EX-Vault access code 353 | -10/Exiles | Opened EX-Vault 358 | -10/Exiles | Found Deploy-a-Sentry 359 | -10/Exiles | Found Deploy-a-Sentry 361 | -10/Exiles | Found Deploy-a-Sentry 371 | -10/Exiles | Warned to stay clear of 0b10 Research branches 387 | -10/Exiles | Met EX-DEC 439 | -10/Exiles | Discovered new exit (range 10) 538 | -10/Exiles | Left Exiles lab with Deploy-a-Sentry 538 | -10/Exiles | Entered Mines 542 | -9/Mines | Assisted by bots powering up and referring to "LRC-V3" 542 | -9/Mines | Learned Materials garrison access intel 580 | -9/Mines | Assembled infested the area 602 | -9/Mines | Discovered new exit (range 9) 630 | -9/Mines | Entered Materials 630 | -8/Materials | Accompanied by 3 allies 630 | -8/Materials | Evolved 4 slots: Propulsion x3, Weapon x1 631 | -8/Materials | Loaded intel: 1 garrison access location 664 | -8/Materials | Discovered new exit (range 15) 835 | -8/Materials | Lost 3 allies 872 | -8/Materials | Discovered new exit (range 16) 909 | -8/Materials | Discovered new exit (range 10) 940 | -8/Materials | Core integrity fell below 50% 959 | -8/Materials | Self-destructed Last Messages --------------- 00896_ Lgt. Treads destroyed. 00897_ Slug penetrates Wall. 00898_ Slug penetrates Y-45 Defender. 00898_ Cesium-ion Thruster destroyed. 00900_ Slug penetrates Wall. 00902_ Drone sends a signal. 00902_ Slug penetrates Wall. 00908_ K-01 Serf collects debris. 00909_ EXIT=FOUND 00918_ Dropped Weight Redist. System. 00919_ Acquired Melee Analysis Suite. 00933_ Penetrated by Slug. 00934_ Slug penetrates Wall. 00936_ Penetrated by Slug. 00937_ Slug penetrates H-55 Commando. 00937_ Core Shielding destroyed. 00939_ Penetrated by Slug. 00943_ Acquired VTOL Module. 00951_ VTOL Module destroyed. 00955_ Slug penetrates Wall. Map ----- +----------------------------------------------------+ | ?????????????????????????????????????????????????? | | ?????????????????????????????????????????????????? | | ?????????????????????????????????????????????????? | | ?????????????????????????????????????????????????? | | ?????????????????????????????????????????????????? | | #####????????????????????????????????????????????? | | ##########???????????????????????????????????? | | " ## ! #???????????????????????????????????? | | " ## ! #???????????????????????????????????? | | " ## ! #????????????? ??????????????????? | | # #?????????????# ??????????????????? | | " ## #??????? /???# #?????????????????? | | " ##= "T" #??????? ??# #????????????###### | | " ## """Y#???????? ?# #????????????# T | | ## h #???#????? ?# #????????????# | | #+########/##### ###???? # #????????????# """ | | #????? # #????????????# """ | | +?????? / +????????????# """ | | #???????# #????????????# | | #+####### g########???????# #?????############# | | ## gh#??????????????# ####### #???### | | """"" ## #??????????????# #???#[[ | | """"" # ################w k #???#[[ | | """"" ## s #???#]] | | """"" ## u ####### #???#]] | | """"" ## k @ a k#?????## ##???#== | | """"" ########+############ #??????# #????#== | | """"" #????? ??######?# #??????# #????### | | #???# #?# ?# #??????# ######## | | ! #???# ""! #?# # #??????# | | !#???# "" #?# # #??????# | | ########???# "" #?# / +??????# | | ???????????# #?# # #??????############ | | ???????????########?# # #??##?????????##### | | ???????????????????#######?# #?""" ????????# | | ??????????????????? ?# #?""" ""??????# """ | | ??????????????????? """ # # """ """ ""??# """ | | ??????????????????" """ # # ?# """ | | ?????????????????? """ + + [ ?# """ | | ???????????????? # # ?# | | ???????????????############# #?Y????###????##### | | ????????????????????# # #?????????????????? | | ????????????????????#[ """ # #?????????????????# | | ??????????[?????????# """ # #?????????????????# | | ????????????????????# """ # #?????????????????# | | ????????????????????# + #?????????????????# | | ????????????????????# # #?????????????????# | | ????????????????????######## #?????????????????# | | ???????????????????????????# #?????????????????# | | ???????????????????????????# #?????????????????# | +----------------------------------------------------+ Best States ------------- Heat Dissipation 31 Energy Generation 10 Energy Capacity 250 Matter Stores 300 Matter Capacity 300 Sight Range 16 Terrain Scan Density 10 Additional Mass Support 6 Core Shielding 20 Propulsion Shielding 33 Evasion (%) 50 Melee Accuracy 5 Recoil Reduction 2 Item Schematics ----------------- None Robot Schematics ------------------ None Fabricated ------------ Nothing Repaired ---------- Nothing Studied --------- None Alien Tech Used ----------------- None Achievements -------------- None Challenges ------------ None Game ------ Seed SniperLargeCutter Manual? 0 Play Time 00:12:00 Cumulative 396.3 hours Start 2026.06.26 @ 13:07:13 End 2026.06.26 @ 13:17:38 Sessions 1 Manual Loads 0 Difficulty Rogue Special Mode None Game No. 361 Rogue 361 Adventurer 0 Explorer 0 Win Type - Total 9 Types 6/0/2/0/0/0/0/0/0/1 Lore% 60 Gallery% 67 Achievement% 63 Wizard Run 0 Options --------- Layout 1 ASCII 0 Keyboard 0 Movement Mouse Keybinds 0 Fullscreen 2 Font 24/Smallcaps Map View 50x35 Zoom Use 10% Tactical HUD 1 Map Filters NONE Filters NONE Steam 1 RUN: 751e6cf1-f4aa-4b91-b511-e3efb9c58350